bitfinex-derivatives/quotes_ETHF0:USTF0_20250708
["timestamp","ask_amount","ask_price","bid_price","bid_amount"]
[1752012097063,3.34401,2611.3,2611.2,4.8376]
[1752012097359,3.34401,2611.3,2611.2,26.142]
[1752012097754,4.65311,2611.3,2611.2,26.142]
[1752012097954,0.76577,2611.1,2611.0,1.0586]
[1752012098156,1.42947,2611.1,2611.0,27.8384]
[1752012098559,1.42947,2611.1,2611.0,1.0586]
[1752012098758,3.78957,2611.1,2611.0,27.8384]
[1752012099157,3.78957,2611.1,2611.0,28.6042]
[1752012099761,3.78957,2611.1,2611.0,27.8384]
[1752012100256,3.78957,2611.1,2611.0,28.6042]
[1752012100462,3.78957,2611.1,2611.0,27.2016]
[1752012100764,3.78957,2611.1,2611.0,27.8384]
[1752012101164,3.78957,2611.1,2611.0,28.6042]
[1752012101462,3.12587,2611.1,2611.0,28.6042]
[1752012101663,3.12587,2611.1,2611.0,29.5972]
[1752012102065,4.74697,2611.1,2611.0,29.5972]
[1752012102760,4.74697,2611.1,2611.0,3.4542]
[1752012102960,4.74697,2611.1,2611.0,29.5982]
[1752012103361,4.74697,2611.1,2611.0,28.8324]
[1752012104869,4.74697,2611.1,2611.0,27.8394]
[1752012105969,4.74697,2611.1,2611.0,28.8324]
[1752012106270,4.74697,2611.1,2611.0,31.25236335]
[1752012107067,4.74697,2611.1,2611.0,32.01816335]
[1752012107267,4.74697,2611.1,2611.0,5.10836335]
[1752012107568,0.76583,2610.9,2610.8,4.41116335]
[1752012107763,1.42953,2610.9,2610.8,29.55696335]
[1752012107966,0.76586,2610.8,2610.7,3.41296335]
[1752012108167,0.76589,2610.7,2610.6,29.3518]
[1752012108367,4.11473899,2610.7,2610.6,29.9886]
[1752012108566,5.50213899,2610.7,2610.6,29.9886]
[1752012108768,5.50213899,2610.7,2610.6,33.42130346]
[1752012109369,5.50213899,2610.7,2610.6,29.9886]
[1752012109866,5.50213899,2610.7,2610.6,3.8446]
[1752012110072,5.50213899,2610.7,2610.6,29.3528]
[1752012110270,0.76592,2610.6,2610.5,3.43270346]
[1752012110472,2.06712,2610.6,2610.5,26.7818]
[1752012110675,2.72752,2610.6,2610.5,27.53815]
[1752012110872,2.06712,2610.6,2610.5,27.53815]
[1752012111072,2.72752,2610.6,2610.5,26.7722]
[1752012111270,2.72752,2610.6,2610.5,27.53815]
[1752012112177,2.06712,2610.6,2610.5,27.53815]
[1752012112574,0.76589,2610.8,2610.7,0.76586]
[1752012112871,4.1653,2610.9,2610.7,27.7676]
[1752012113070,4.1653,2610.9,2610.8,1.79026]
[1752012113275,4.1653,2610.9,2610.8,3.41086]
[1752012113478,4.93113,2610.9,2610.8,3.41086]
[1752012113671,4.1653,2610.9,2610.8,3.41086]
[1752012114171,4.93113,2610.9,2610.8,3.41086]
[1752012114877,1.72333,2610.9,2610.8,6.61866]
[1752012115178,0.9575,2610.9,2610.8,6.61866]
[1752012115779,0.76569,2611.4,2611.3,0.76568]
[1752012115974,1.43185618,2611.4,2611.3,30.17955899]
[1752012116375,2.29360578,2612.0,2611.5,1.91413]
[1752012116581,2.29360578,2612.2,2612.1,0.76548]
[1752012116776,3.72497103,2612.2,2612.1,30.18232899]
[1752012116978,4.5805289,2612.7,2612.2,1.91363]
[1752012117181,4.5805289,2612.8,2612.7,0.7653]
[1752012117476,4.5805289,2613.2,2612.7,32.69671346]
[1752012117675,8.01592558,2613.7,2613.1,5.61923899]
[1752012117676,4.5805289,2613.6,2613.1,5.61923899]
[1752012117977,5.3455389,2613.7,2613.5,0.6272]
[1752012118172,0.76501,2613.7,2613.6,27.1784]
[1752012118382,3.12094899,2613.7,2613.0,3.2078]
[1752012118676,0.76522,2613.0,2612.9,26.203]
[1752012118881,0.76524,2612.9,2612.8,0.9934]
[1752012119081,0.76524,2612.9,2612.8,27.2424]
[1752012119282,0.76524,2612.9,2612.8,27.8696]
[1752012119474,0.76524,2612.9,2612.8,30.1464895]
[1752012119874,0.76524,2612.9,2612.8,3.8974895]
[1752012120081,0.76524,2612.9,2612.8,26.245]
[1752012120580,0.76524,2612.9,2612.8,26.8722]
[1752012120782,0.76524,2612.9,2612.8,26.245]
[1752012121182,0.76524,2612.9,2612.8,26.8722]
[1752012121380,0.76525,2612.9,2612.8,26.245]
[1752012121583,1.91319,2612.8,2612.3,1.0189]
[1752012121777,0.76536,2612.5,2612.4,26.24]
[1752012121979,1.42576,2612.5,2612.4,26.8672]
[1752012122676,4.17916,2612.5,2612.4,26.8672]
[1752012122880,4.17916,2612.5,2612.4,26.8652]
[1752012123176,4.17916,2612.5,2612.4,0.6272]
[1752012123384,4.17916,2612.5,2612.4,26.8632]
[1752012124483,4.17916,2612.5,2612.4,0.6272]
[1752012126387,0.76539,2612.4,2612.3,26.243]
[1752012126582,2.77459,2612.4,2612.3,26.243]
[1752012126984,0.76545,2612.2,2612.1,0.9904]
[1752012127185,0.76548,2612.1,2612.0,55.16]
[1752012127391,0.76554,2611.9,2611.8,4.2012]
[1752012127688,0.76554,2611.9,2611.8,5.59397]
[1752012127885,1.42594,2611.9,2611.8,31.0634]
[1752012128084,1.42594,2611.9,2611.8,31.82897]
[1752012130094,1.42594,2611.9,2611.8,31.0634]
[1752012130294,1.42594,2611.9,2611.8,3.835]
[1752012130497,0.6604,2611.9,2611.6,1.9763]
[1752012130698,0.6604,2611.9,2611.8,26.8522]
[1752012130897,0.7656,2611.7,2611.6,1.9763]
[1752012131100,0.76566,2611.5,2611.4,0.9934]
[1752012131399,0.76562,2611.7,2611.6,0.76562]
[1752012131600,0.76562,2611.7,2611.6,31.82002]
[1752012131994,1.42602,2611.7,2611.6,31.82002]
[1752012132195,1.2632,2611.9,2611.6,31.0544]
[1752012132394,5.1214,2612.3,2611.7,4.40665487]
[1752012132395,3.2078,2612.3,2611.7,4.40665487]
[1752012132590,2.7534,2612.5,2612.4,0.76539]
[1752012132798,3.51876,2612.5,2612.4,28.62299]
[1752012133398,2.7534,2612.5,2612.4,28.62299]
[1752012133702,3.44692,2613.1,2612.4,28.62299]
[1752012133703,0.2707,2613.1,2613.0,0.76522]
[1752012133890,0.2707,2613.1,2613.0,27.63842]
[1752012134198,1.4256,2613.1,2613.0,27.8666]
[1752012134398,0.7652,2613.1,2613.0,27.8666]
[1752012134595,1.91306,2613.0,2612.4,0.9934]
[1752012134801,0.76533,2612.6,2612.5,26.259]
[1752012134998,0.76533,2612.6,2612.5,26.8862]
[1752012135697,0.76542,2612.3,2612.2,1.0495]
[1752012135896,3.8682,2612.6,2612.2,1.0495]
[1752012135897,0.7654,2612.4,2612.3,0.76539]
[1752012136202,0.7654,2612.4,2612.3,5.59379]
[1752012136203,1.4258,2612.4,2612.3,5.59379]
[1752012137104,0.76538,2612.5,2612.4,0.76539]
[1752012137298,0.2708,2612.6,2612.5,0.76536]
[1752012137497,0.2708,2612.6,2612.5,2.38596]
[1752012139702,1.03613,2612.6,2612.5,1.6206]
[1752012141602,1.67043,2612.6,2612.5,0.6272]
[1752012141800,0.9051,2612.6,2612.2,1.0495]
[1752012142002,0.76542,2612.3,2612.2,1.0495]
[1752012142307,0.76545,2612.2,2612.1,3.2078]
[1752012142603,2.68025,2612.2,2612.1,3.8669]
[1752012142805,2.68025,2612.2,2612.1,30.1259]
[1752012143203,2.68025,2612.2,2612.1,29.4668]
[1752012143701,0.76551,2612.0,2611.9,2.2768895]
[1752012143905,1.39981,2612.0,2611.9,0.6591]
[1752012144105,1.39981,2612.0,2611.8,4.2295]
[1752012144106,0.76554,2611.9,2611.8,29.4638]
[1752012144306,0.76554,2611.9,2611.8,30.1229]
[1752012144307,1.39984,2611.9,2611.8,30.1229]
[1752012144799,1.39984,2611.9,2611.8,29.4638]
[1752012144800,0.76554,2611.9,2611.8,29.4638]
[1752012145000,0.7656,2611.7,2611.6,1.0535]
[1752012145307,1.91409,2611.6,2611.4,26.26]
[1752012145601,1.39996,2611.5,2611.4,26.9191]
[1752012145806,0.76566,2611.5,2611.4,26.9191]
[1752012146007,1.39996,2611.5,2611.4,26.9191]
[1752012146306,1.9916,2611.5,2611.2,5.4846895]
[1752012146500,0.76574,2611.2,2611.1,28.5548895]
[1752012146702,1.40004,2611.2,2611.1,29.2139895]
[1752012146901,0.76574,2611.2,2611.1,26.9371]
[1752012147198,1.40004,2611.2,2611.1,26.9371]
[1752012147401,2.98904,2612.0,2611.1,36.1199]
[1752012147601,0.76556,2611.9,2611.8,0.76554]
[1752012147811,0.1179,2612.0,2611.9,2.39964]
[1752012148104,0.1179,2612.0,2611.9,5.60744]
[1752012148310,0.1179,2612.0,2611.9,7.98234]
[1752012148903,1.51771,2612.0,2611.9,5.8311]
[1752012149107,1.51771,2612.0,2611.5,3.43270346]
[1752012149108,0.7656,2611.7,2611.6,5.4846895]
[1752012149308,1.3999,2611.7,2611.6,30.2049]
[1752012149508,0.76566,2611.5,2611.4,2.2768895]
[1752012149705,1.39996,2611.5,2611.4,4.09180346]
[1752012150011,0.76568,2611.4,2611.3,3.43270346]
[1752012150205,0.76571,2611.3,2611.2,3.43270346]
[1752012150406,1.40001,2611.3,2611.2,3.43270346]
[1752012150610,0.76559,2611.8,2611.7,0.76557]
[1752012150907,1.39987,2611.8,2611.7,1.6341]
[1752012151208,0.76566,2611.5,2611.4,4.06096643]
[1752012151408,0.76566,2611.5,2611.4,28.0376]
[1752012151610,0.76566,2611.5,2611.4,28.80328]
[1752012151800,0.76566,2611.5,2611.4,30.31593805]
[1752012152001,0.76571,2611.3,2611.2,2.27833805]
[1752012152202,0.76568,2611.4,2611.3,0.76571]
[1752012152402,1.9454,2611.8,2611.3,5.48613805]
[1752012152601,0.76561,2611.7,2611.6,0.76561]
[1752012153308,0.76561,2611.7,2611.3,3.2078]
[1752012153309,0.76568,2611.4,2611.3,3.2078]
[1752012153508,0.76571,2611.3,2611.2,0.6591]
[1752012153704,0.6343,2611.7,2611.2,0.6591]
[1752012153899,3.2078,2611.8,2611.4,0.76567]
[1752012153900,0.76568,2611.5,2611.4,0.76567]
[1752012154105,0.7657,2611.4,2611.3,0.76569]
[1752012154506,0.76568,2611.5,2611.4,0.76567]
[1752012154808,1.39998,2611.5,2611.4,0.76567]
[1752012155308,0.76568,2611.4,2611.3,6.91092805]
[1752012155504,1.3111,2611.8,2611.3,3.8669]
[1752012155708,0.1179,2612.0,2611.4,27.4201]
[1752012155910,0.76569,2611.4,2611.3,3.8669]
[1752012156109,0.76572,2611.3,2611.2,26.416]
[1752012156407,1.40002,2611.3,2611.2,0.6591]
[1752012156717,0.76578,2611.1,2611.0,5.48577991]
[1752012157010,0.76578,2611.1,2611.0,2.93707991]
[1752012157213,3.3342,2611.4,2611.3,0.76572]
[1752012157407,3.3342,2611.4,2611.0,2.93707991]
[1752012157408,1.91431,2611.3,2611.0,4.30097991]
[1752012157608,1.91431,2611.3,2611.0,2.93707991]
[1752012157609,0.76578,2611.1,2611.0,2.93707991]
[1752012157808,3.3342,2611.4,2611.3,0.76572]
[1752012158114,4.09989,2611.4,2611.3,27.22472]
[1752012158310,4.09989,2611.4,2611.3,26.459]
[1752012158514,0.76578,2611.1,2611.0,27.1351]
[1752012159007,0.76578,2611.1,2611.0,3.8669]
[1752012159208,0.76578,2611.1,2611.0,6.14487991]
[1752012159411,0.76578,2611.1,2611.0,3.8669]
[1752012159912,0.76578,2611.1,2611.0,6.14487991]
[1752012160413,0.76578,2611.1,2611.0,3.97361]
[1752012160613,0.76578,2611.1,2611.0,4.8419]
[1752012160614,1.40008,2611.1,2611.0,4.8419]
[1752012160811,1.40008,2611.1,2611.0,30.39160199]
[1752012161114,0.76578,2611.1,2611.0,28.1151]
[1752012161515,1.40008,2611.1,2611.0,28.1151]
[1752012161711,0.6343,2611.1,2610.9,5.48430199]
[1752012161908,0.76584,2610.9,2610.8,2.27650199]
[1752012162117,1.40014,2610.9,2610.8,2.27650199]
[1752012162414,0.76584,2610.9,2610.8,2.93560199]
[1752012162618,0.76577,2611.2,2611.1,0.76575]
[1752012162812,0.76575,2611.2,2611.1,0.6591]
[1752012163016,0.76575,2611.2,2610.9,6.31693]
[1752012163017,0.76587,2610.8,2610.7,2.27650199]
[1752012163215,0.76587,2610.8,2610.6,2.27673275]
[1752012163216,0.6343,2610.8,2610.6,2.27673275]
[1752012163416,2.0561,2610.7,2610.6,2.27673275]
[1752012163616,0.7659,2610.7,2610.6,1.6341]
[1752012163821,1.4002,2610.7,2610.6,3.8669]
[1752012164215,0.7659,2610.7,2610.6,3.8669]
[1752012164516,1.4002,2610.7,2610.6,3.8669]
[1752012165014,0.6343,2610.7,2610.1,3.25173275]
[1752012165218,2.1845,2610.9,2610.6,0.6591]
[1752012165219,1.3689,2610.9,2610.6,0.6591]
[1752012165517,0.76589,2610.8,2610.7,1.74087]
[1752012165720,0.76589,2610.8,2610.7,2.39997]
[1752012165913,0.76595,2610.5,2610.4,3.2078]
[1752012166110,0.76595,2610.5,2610.4,4.63288]
[1752012166313,2.68433263,2610.7,2610.4,4.63288]
[1752012166314,0.76592,2610.7,2610.4,4.8419]
[1752012166614,1.91469,2610.8,2610.5,0.975]
[1752012166824,0.76592,2610.6,2610.5,0.6591]
[1752012167019,0.76592,2610.6,2610.4,3.2078]
[1752012167020,0.76595,2610.5,2610.4,3.2078]
[1752012167322,1.40025,2610.5,2610.4,3.8669]
[1752012167517,0.76601,2610.3,2610.2,0.9964]
[1752012167716,1.40031,2610.3,2610.2,28.2315]
[1752012167913,0.76601,2610.3,2610.2,29.97254]
[1752012168519,0.76601,2610.3,2610.2,29.97054]
[1752012169222,1.40031,2610.3,2610.2,28.2295]
[1752012169426,0.76601,2610.3,2610.2,29.2095]
[1752012169623,0.76601,2610.3,2610.2,29.97554]
[1752012169819,1.40031,2610.3,2610.2,28.2345]
[1752012170721,0.76607,2610.1,2610.0,3.2078]
[1752012171024,1.39367,2610.1,2610.0,31.2448]
[1752012171225,0.76607,2610.1,2610.0,31.2448]
[1752012171420,0.9978,2610.5,2610.0,32.2198]
[1752012171721,0.76604,2610.2,2610.1,27.556]
[1752012171914,0.76604,2610.2,2610.1,0.6959]
[1752012172415,1.39364,2610.2,2610.1,27.2899]
[1752012172620,0.76604,2610.2,2610.1,27.2899]
[1752012172822,1.39364,2610.2,2610.1,27.2899]
[1752012173015,0.2706,2610.3,2610.2,0.76604]
[1752012173422,0.76604,2610.2,2610.1,1.7292]
[1752012173623,1.39364,2610.2,2610.1,28.3232]
[1752012173813,1.39364,2610.2,2610.1,27.2899]
[1752012174017,1.39364,2610.2,2610.1,27.2919]
[1752012174216,2.02314,2610.2,2610.1,27.2919]
[1752012174418,2.65074,2610.2,2610.1,0.6959]
[1752012174821,1.8847,2610.2,2610.1,0.6959]
[1752012175020,1.39364,2610.2,2610.1,0.6959]
[1752012175418,0.76604,2610.2,2610.1,1.46197]
[1752012176123,1.39364,2610.2,2610.1,1.46197]
[1752012177125,0.76604,2610.2,2610.1,1.46197]
[1752012177526,1.15423,2610.3,2610.2,0.76604]
[1752012177831,1.15421,2610.3,2610.2,0.76604]
[1752012178123,1.78181,2610.3,2610.2,0.76604]
[1752012178323,1.78181,2610.3,2610.2,1.46194]
[1752012180326,1.0158,2610.3,2610.2,1.46194]
[1752012180731,0.3882,2610.3,2610.2,5.70304]
[1752012180927,0.3882,2610.3,2610.2,7.04564]
[1752012181822,2.91294,2611.0,2610.5,0.76592]
[1752012182027,1.39354,2610.6,2610.5,28.04582]
[1752012182230,3.27591,2610.9,2610.6,0.76591]
[1752012182428,0.76593,2610.7,2610.6,0.76591]
[1752012182628,1.39353,2610.7,2610.6,1.46181]
[1752012182923,3.31193263,2610.7,2610.6,0.6959]
[1752012183128,3.2078,2610.8,2610.6,0.6959]
[1752012183129,0.76589,2610.8,2610.7,0.76587]
[1752012183429,0.76589,2610.8,2610.7,1.46177]
[1752012184323,1.39349,2610.8,2610.7,1.46177]
[1752012184524,1.39349,2610.8,2610.7,0.6959]
[1752012185125,1.39349,2610.8,2610.7,1.4618]
[1752012186331,1.39349,2610.8,2610.7,0.6959]
[1752012186532,1.39349,2610.8,2610.7,1.4618]
[1752012187936,1.39349,2610.8,2610.7,0.6959]
[1752012188134,1.39349,2610.8,2610.7,1.4618]
[1752012188335,0.6276,2610.8,2610.7,2.4951]
[1752012188631,0.76587,2610.9,2610.8,0.76584]
[1752012188831,1.39347,2610.9,2610.8,1.46174]
[1752012189036,0.76587,2610.9,2610.8,1.46174]
[1752012189236,1.39347,2610.9,2610.8,1.46174]
[1752012189640,0.7658,2611.1,2611.0,0.76578]
[1752012189834,0.76577,2611.2,2611.1,0.76578]
[1752012190030,1.39337,2611.2,2611.1,1.46168]
[1752012190234,6.2712,2611.4,2611.3,0.76572]
[1752012190536,6.2712,2611.4,2611.3,2.49492]
[1752012190736,7.03689,2611.4,2611.3,2.49492]
[1752012191633,1.0496,2612.0,2611.7,0.7656]
[1752012191831,0.76557,2611.8,2611.7,0.7656]
[1752012192035,1.39317,2611.8,2611.7,1.4615]
[1752012192236,0.76557,2611.8,2611.7,1.4615]
[1752012192440,0.7655,2612.1,2611.8,1.91394]
[1752012192748,1.3931,2612.1,2612.0,0.6959]
[1752012192937,0.7655,2612.1,2612.0,1.46141]
[1752012193239,1.3931,2612.1,2612.0,1.46141]
[1752012193441,1.3931,2612.1,2612.0,0.6959]
[1752012194638,1.3931,2612.1,2611.7,3.2078]
[1752012194844,0.76555,2611.9,2611.8,0.76555]
[1752012195037,4.1995,2612.3,2611.8,1.7292]
[1752012195340,0.76547,2612.2,2612.1,0.76546]
[1752012196042,0.76554,2611.9,2611.8,2.49476]
[1752012196443,0.76554,2611.9,2611.8,1.7292]
[1752012196646,0.76557,2611.8,2611.7,29.7708]
[1752012196840,0.76557,2611.8,2611.7,26.563]
[1752012197440,0.76557,2611.8,2611.7,27.3286]
[1752012198646,0.76557,2611.8,2611.7,26.563]
[1752012200139,0.76563,2611.6,2611.5,1.0302]
[1752012200348,0.76563,2611.6,2611.5,27.5732]
[1752012200546,0.76563,2611.6,2611.5,28.2691]
[1752012200741,0.76563,2611.6,2611.5,27.5732]
[1752012201344,2.14123,2611.6,2611.5,28.2473]
[1752012201843,2.14123,2611.6,2611.5,1.7043]
[1752012202046,2.14123,2611.6,2611.5,0.6741]
[1752012202945,2.77033,2611.6,2611.5,0.6741]
[1752012207841,0.76566,2611.5,2611.4,3.2078]
[1752012208040,0.76575,2611.2,2611.1,0.976]
[1752012208246,1.91415,2611.6,2611.1,29.208]
[1752012208543,0.76564,2611.7,2611.6,0.76563]
[1752012208942,0.76564,2611.7,2611.5,26.522]
[1752012208943,0.76563,2611.6,2611.5,26.522]
[1752012209138,0.76563,2611.6,2611.5,27.28766]
[1752012209844,0.76563,2611.6,2611.5,27.29966]
[1752012211748,0.76563,2611.6,2611.5,27.97376]
[1752012211947,0.76563,2611.6,2611.5,31.18156]
[1752012212246,1.39473,2611.6,2611.5,31.18156]
[1752012212644,1.39473,2611.6,2611.5,26.523]
[1752012212848,1.39473,2611.6,2611.5,27.1971]
[1752012215254,1.39473,2611.6,2611.3,4.08107932]
[1752012215452,1.39473,2611.6,2611.3,26.507]
[1752012215453,0.76569,2611.4,2611.3,26.507]
[1752012215647,1.39479,2611.4,2611.3,27.1811]
[1752012215849,0.76569,2611.4,2611.3,27.1811]
[1752012216046,1.39479,2611.4,2611.3,27.1811]
[1752012216349,0.76569,2611.4,2611.3,28.98872]
[1752012216552,1.39479,2611.4,2611.3,28.98872]
[1752012216747,0.76569,2611.4,2611.3,28.223]
[1752012216948,1.39479,2611.4,2611.3,27.1811]
[1752012217546,1.39479,2611.4,2611.3,26.507]
[1752012217945,1.39479,2611.4,2611.3,27.1811]
[1752012219452,0.76569,2611.4,2611.3,27.1811]
[1752012219847,0.76569,2611.5,2611.3,30.1373]
[1752012220048,1.39479,2611.4,2611.3,0.6741]
[1752012220253,1.39479,2611.4,2611.3,29.44419005]
[1752012220652,0.76569,2611.4,2611.3,29.44419005]
[1752012220955,0.76569,2611.4,2611.3,27.92782]
[1752012221154,0.76569,2611.5,2611.4,0.76563]
[1752012221354,0.76569,2611.5,2611.4,0.6741]
[1752012221555,0.76569,2611.5,2611.4,2.48169]
[1752012222152,0.76569,2611.5,2611.4,1.716]
[1752012222856,1.39479,2611.5,2611.4,0.6741]
[1752012223547,0.76569,2611.4,2611.3,26.488]
[1752012223950,1.39479,2611.4,2611.3,27.1621]
[1752012225458,0.76569,2611.4,2611.3,27.1621]
[1752012226460,1.39479,2611.4,2611.3,27.1621]
[1752012227457,1.39479,2611.4,2611.3,28.96972]
[1752012227662,0.76567,2611.5,2611.4,0.76566]
[1752012227863,1.39477,2611.5,2611.4,2.48166]
[1752012228258,0.76567,2611.5,2611.4,2.48166]
[1752012228463,1.39477,2611.5,2611.4,2.48166]
[1752012228962,1.39477,2611.5,2611.4,0.6741]
[1752012230064,0.76569,2611.4,2611.3,29.92070346]
[1752012230268,1.39479,2611.4,2611.3,30.59480346]
[1752012230474,1.39479,2611.4,2611.3,27.1621]
[1752012230867,2.68576654,2611.4,2611.3,27.1621]
[1752012231469,0.76572,2611.3,2611.2,6.64050346]
[1752012231675,1.41322,2611.3,2611.2,33.81900346]
[1752012232069,1.41322,2611.3,2611.2,3.43270346]
[1752012232275,1.41322,2611.3,2611.2,2.28570199]
[1752012232276,7.01642,2611.3,2611.2,2.28570199]
[1752012233180,6.2507,2611.3,2610.9,2.28570199]
[1752012233376,2.05678654,2611.0,2610.9,28.76570199]
[1752012233568,2.05678654,2611.0,2610.9,2.28570199]
[1752012234170,3.34448654,2611.0,2610.9,2.28570199]
[1752012234375,0.76584,2610.9,2610.8,2.28570199]
[1752012234572,2.05354,2610.9,2610.8,2.28570199]
[1752012234781,4.74017823,2610.9,2610.8,2.28570199]
[1752012235075,4.74017823,2610.9,2610.8,2.98020199]
[1752012235576,4.74017823,2610.9,2610.8,0.6945]
[1752012235774,0.7659,2610.7,2610.6,2.28570199]
[1752012236179,0.76592,2610.6,2610.5,2.28570199]
[1752012236485,0.76595,2610.5,2610.4,3.43270346]
[1752012236685,0.76595,2610.5,2610.4,0.6945]
[1752012237582,0.76595,2610.5,2610.2,7.40653346]
[1752012237583,0.76601,2610.3,2610.2,29.6848]
[1752012237783,0.76601,2610.3,2610.2,30.3793]
[1752012238380,1.41351,2610.3,2610.2,0.6945]
[1752012238586,1.41351,2610.3,2610.2,27.1715]
[1752012238781,1.41351,2610.3,2610.2,27.1705]
[1752012238982,0.76607,2610.1,2610.0,3.43270346]
[1752012239181,0.76607,2610.1,2610.0,5.91480346]
[1752012239389,3.2078,2610.4,2610.1,0.76605]
[1752012239687,4.62128,2610.4,2610.3,0.6945]
[1752012239887,3.97378,2610.4,2610.3,0.6945]
[1752012240082,3.97378,2610.4,2610.3,1.46051]
[1752012240286,3.2078,2610.4,2610.3,2.43731]
[1752012240590,0.76598,2610.4,2610.3,2.43731]
[1752012241287,0.76595,2610.6,2610.5,0.76592]
[1752012241586,0.76595,2610.6,2610.5,0.6945]
[1752012241587,1.41345,2610.6,2610.5,0.6945]
[1752012242386,1.41345,2610.6,2610.5,1.46045]
[1752012242688,1.41345,2610.6,2610.5,2.43725]
[1752012242881,1.41345,2610.6,2610.5,1.6713]
[1752012243086,1.41345,2610.6,2610.5,0.6945]
[1752012245385,1.41345,2610.6,2610.5,1.6713]
[1752012247795,2.40275,2610.6,2610.5,1.6713]
[1752012248392,2.40275,2610.6,2610.5,0.6945]
[1752012249293,2.40275,2610.6,2610.5,1.6713]
[1752012252696,2.40275,2610.6,2610.5,0.6945]
[1752012253396,2.40275,2610.6,2610.5,1.46045]
[1752012254201,2.40272,2610.6,2610.5,2.43725]
[1752012254392,1.75522,2610.6,2610.5,5.64505]
[1752012254593,0.9893,2610.6,2610.5,5.64505]
[1752012254792,1.75522,2610.6,2610.5,5.64505]
[1752012255093,0.9893,2610.6,2610.5,5.64505]
[1752012255292,0.9893,2610.6,2610.5,7.01295]
[1752012260200,0.9893,2610.6,2610.5,10.44565346]
[1752012261902,1.75522,2610.6,2610.5,32.28595346]
[1752012263098,0.9893,2610.6,2610.5,32.06105]
[1752012263492,1.75522,2610.6,2610.5,32.06105]
[1752012265604,2.40282,2610.6,2610.5,32.06105]
[1752012265800,2.40282,2610.6,2610.5,30.3183]
[1752012266007,2.40282,2610.6,2610.5,33.70396161]
[1752012266304,2.40282,2610.6,2610.5,6.63576161]
[1752012266599,3.70202,2610.6,2610.5,7.28796161]
[1752012266805,4.64032,2610.6,2610.5,29.82796161]
[1752012267000,3.70202,2610.6,2610.5,31.24611161]
[1752012267306,3.70202,2610.6,2610.5,26.4]
[1752012267505,3.70202,2610.6,2610.5,27.0522]
[1752012271007,3.70202,2610.6,2610.3,3.42796161]
[1752012271008,0.76598,2610.4,2610.3,3.42796161]
[1752012271198,2.0572043,2610.4,2610.3,30.46216161]
[1752012272002,2.0572043,2610.4,2610.3,27.0342]
[1752012272308,0.76601,2610.3,2610.2,3.2078]
[1752012272508,0.76601,2610.3,2610.2,30.241]
[1752012273106,0.76601,2610.3,2610.2,29.5888]
[1752012273309,2.05781,2610.3,2610.2,29.5888]
[1752012273507,2.05781,2610.3,2610.2,30.241]
[1752012274310,2.05781,2610.3,2610.2,3.86]
[1752012274610,2.70541,2610.3,2610.2,30.239]
[1752012274811,0.76604,2610.2,2610.1,29.80096161]
[1752012275012,3.3764643,2610.2,2610.1,29.80096161]
[1752012275309,3.3764643,2610.2,2610.1,27.0342]
[1752012275504,3.3764643,2610.2,2610.1,0.6522]
[1752012275706,6.5842643,2610.2,2610.1,0.6522]
[1752012276313,0.7661,2610.0,2609.9,29.80996161]
[1752012276612,2.7049243,2610.0,2609.9,26.384]
[1752012276911,0.76613,2609.9,2609.8,3.42796161]
[1752012277211,3.71793,2609.9,2609.8,27.0322]
[1752012277612,3.71793,2609.9,2609.8,27.79836]
[1752012278907,3.71793,2609.9,2609.8,27.0322]
[1752012279110,3.71793,2609.9,2609.8,27.0252]
[1752012282013,3.71793,2609.9,2609.8,27.0192]
[1752012283011,0.9987,2609.9,2609.8,28.72856]
[1752012283218,3.2063043,2610.3,2610.1,0.76604]
[1752012283524,0.76608,2610.2,2610.1,27.12604]
[1752012283717,1.41368,2610.2,2610.1,26.36]
[1752012283919,2.67498,2610.2,2610.1,26.36]
[1752012284118,2.67498,2610.2,2610.1,27.12607]
[1752012285321,2.02738,2610.2,2610.1,27.12607]
[1752012285723,2.67498,2610.2,2610.1,27.12607]
[1752012286423,2.67498,2610.2,2610.1,26.36]
[1752012286716,2.02738,2610.2,2610.1,26.36]
[1752012286922,2.67498,2610.2,2610.1,27.0122]
[1752012287122,2.67498,2610.2,2610.1,26.36]
[1752012287422,2.67498,2610.2,2610.1,27.0122]
[1752012290118,2.67498,2610.2,2610.1,27.77827]
[1752012290317,2.71728,2610.2,2610.1,27.77827]
[1752012290523,3.01478,2610.2,2610.1,27.77827]
[1752012290721,0.9874,2610.2,2610.1,27.77827]
[1752012290926,0.9874,2610.2,2610.1,28.72147]
[1752012291128,0.9874,2610.2,2610.1,30.0126943]
[1752012291322,0.9874,2610.2,2610.1,28.72147]
[1752012292723,0.9874,2610.2,2610.1,31.12787]
[1752012293428,1.75344,2610.2,2610.1,31.12787]
[1752012293629,2.44334,2610.2,2610.1,31.12787]
[1752012293829,0.9874,2610.2,2610.1,31.12787]
[1752012295336,3.0446643,2610.2,2610.1,28.0153]
[1752012295538,3.9069243,2610.2,2609.9,6.63576161]
[1752012295835,3.9069243,2610.2,2609.9,3.2078]
[1752012295836,2.0573243,2610.0,2609.9,3.2078]
[1752012296041,2.0573243,2610.0,2609.9,30.1914]
[1752012296235,2.0573243,2610.0,2609.9,33.61936161]
[1752012296436,2.7472243,2610.0,2609.9,34.38549161]
[1752012296637,2.0573243,2610.0,2609.9,34.38549161]
[1752012297032,2.7472243,2610.0,2609.9,30.95753]
[1752012297237,2.0573243,2610.0,2609.9,30.95753]
[1752012297432,2.7472243,2610.0,2609.9,30.95753]
[1752012299039,2.7472243,2610.0,2609.9,30.1914]